{"text_format":"1","workbook":"xlsx","n_sheets":14,"sheets":["Cover","Info","Results","E01","E02","E03","E04","E05","E06","E07","E08","E09","E10","About"],"not_rendered":{"charts":10,"images":46,"macros":1,"external_links":0,"defined_names":16,"comments":0,"pivot_tables":0},"unopened":[],"bounds":{"document_bytes":16777216,"sheet_cells":100000,"rows_first":2000,"rows_last":500,"rows_between":2000,"halvings":0,"cell_chars":16384,"cell_head_chars":4096},"cells_cut":0,"cells_raw":0,"read":"whole","date_system":"1900"}

{"sheet":"Cover","index":0,"n_rows":0,"n_cols":0,"rows_kept":0,"cut":false,"hidden":false,"merged":[]}

{"sheet":"Info","index":1,"n_rows":49,"n_cols":4,"rows_kept":49,"cut":false,"hidden":false,"merged":[[0,0,0,16383],[49,1,49,3],[2,1,2,2],[3,1,3,2],[4,1,4,2],[5,1,5,2],[6,1,6,2],[39,1,39,2],[40,1,40,2],[41,1,41,2],[42,1,42,2],[43,1,43,2],[45,1,45,3],[46,1,46,3]]}
[]
[]
[null,"Avaliação",null,"Resposta"]
[null,"Nome da cidade"]
[null,"Tipo de cidade (município, áreas metropolitanas, etc.)"]
[null,"País"]
[null,"Data de avaliação"]
[]
[null,"Perfil de cidade (necessário)","Resposta","Data da fonte"]
[null,"Título do mais alto nível de autoridade (por exemplo, prefeito, etc)"]
[null,"População total :    "]
[null,"Quilómetros quadrados :"]
[null,"Densidade populacional (por quilómetros quadrados) : "]
[null,"População jovem (15-24) (%) :"]
[null,"População idosa (65+) (%) :"]
[null,"Género (agregados chefiados por mulheres) :"]
[null,"Taxa de Alfabetização (% da população alfabetizada) :"]
[null,"Taxa de pobreza (% da população que não está na pobreza):"]
[null,"Rendimento médio do agregado (DEU) :"]
[null,"Cidadãos não residentes (%) :"]
[null,"Risco de Catástrofe mais prováveis :"]
[null,"Catástrofes mais graves (conhecidas) : "]
[]
[null,"Perfil da cidade (necessário) [1]","Números totais e/ou porcentagem da população total","Fonte das informações"]
[null,"População de pessoas com deficiência (prevalência estimada)"]
[null,"Informações desagregadas por renda (abaixo da linha de pobreza)"]
[null,"Informações desagregadas por sexo"]
[null,"Informações desagregadas por idade"]
[null,"Informações desagregadas por tipo de deficiência (deficiência física, deficiência sensorial, deficiência cognitiva, deficiência intelectual, doença mental e alguma forma de doença crônica)"]
[null,"Informações desagregadas por bairro"]
[]
[null,"Perfil da cidade (opcional)","Resposta","Data da fonte"]
[null,"Número total de agregados :"]
[null,"Pessoa por unidade :"]
[null,"Custo de vida (DEU) :"]
[null,"Produto Interno Bruto do País por capital (DEU) :"]
[null,"Coeficiente de Gini :"]
[null,"Produto da cidade por capital (DEU) :"]
[]
[null,"Equipa do Governo Local para Resiliência e Redução de Riscos de Catástrofes",null,"Response"]
[null,"Nome da pessoa que lidera / coordena a conclusão de avaliação da Ferramenta de Auto-Avaliação :"]
[null,"Organização : "]
[null,"Detalhes de contato :"]
[null,"Vontade de partilhar os resultados ou ser usado como um exemplo / caso de estudo por UNISDR e sócios :"]
[]
[null,"Situation of persons with disabilities in the city / local government [2]"]
[]
[]
[null,"Informação dos atores [3]"]

{"sheet":"Results","index":2,"n_rows":145,"n_cols":13,"rows_kept":145,"cut":false,"hidden":false,"merged":[[34,2,34,5],[83,2,83,5],[41,2,41,5],[42,2,42,5],[49,2,49,5],[56,2,56,5],[54,3,54,6],[39,3,39,6],[62,3,62,6],[67,3,67,6],[73,3,73,6],[69,2,69,5],[70,2,70,5],[64,2,64,5],[58,2,58,5],[57,2,57,5],[59,2,59,5],[35,2,35,5],[104,1,104,3],[88,2,88,5],[95,2,95,5],[96,2,96,5],[102,1,102,2],[86,3,86,5],[93,3,93,6],[89,2,89,5],[90,2,90,5],[75,2,75,5],[76,2,76,5]]}
[]
[]
[]
[]
[null,{"$f":"Info!B4&IF(Info!D4=\"\",\"\",Info!D4)","v":"Nome da cidade"}]
[]
[null,{"$f":"Info!B6&IF(Info!D6=\"\",\"\",Info!D6)","v":"País"}]
[]
[null,{"$f":"Info!B7&IF(Info!D7=\"\",\"\",Info!D7)","v":"Data de avaliação"}]
[]
[]
[]
[]
[]
[]
[]
[]
[]
[]
[]
[]
[]
[]
[]
[]
[]
[]
[]
[]
[]
[]
[]
[null,"Princípio 01: ",null,{"$f":"D109","v":"Organizar para a Resiliência a Desastres - Inclusão de pessoas com deficiência na governança de risco de desastres"}]
[]
[null,{"$f":"C121","v":"Q 1.1"},{"$f":"E121","v":"Não deixar ninguém para trás"},null,null,null,{"$f":"F121","v":0}]
[null,{"$f":"C122","v":"Q 1.2"},{"$f":"E122","v":"Organização, coordenação e participação"},null,null,null,{"$f":"F122","v":0}]
[]
[]
[]
[null,"Princípio 02: ",null,{"$f":"D110","v":"Identificar, compreender e usar cenários de riscos atuais e futuross - Inclusão de pessoas com deficiência em cenários de riscos de desastres\n"}]
[]
[null,{"$f":"C123","v":"Q 2.1"},{"$f":"E123","v":"Projeto de análise de riscos e cenários de riscos inclusiva para pessoas com deficiência"},null,null,null,{"$f":"F123","v":0}]
[null,{"$f":"C124","v":"Q 2.2"},{"$f":"E124","v":"Efeito em cascata"},null,null,null,{"$f":"F124","v":0}]
[]
[]
[]
[]
[null,"Princípio 03:",null,{"$f":"D111","v":"Fortalecer a capacidade financeira para a resiliência  - Inclusão de pessoas com deficiência nos mecanismos financeiros"}]
[]
[null,{"$f":"C125","v":"Q 3.1"},{"$f":"E125","v":"Mecanismos financeiros inclusivos"},null,null,null,{"$f":"F125","v":0}]
[]
[]
[]
[]
[null,"Princípio 04:",null,{"$f":"D112","v":"Buscar projeto e desenvolvimento urbano resiliente - Inclusão de pessoas com deficiência nos códigos de uso/edificação de terras"}]
[]
[null,{"$f":"C126","v":"Q 4.1"},{"$f":"E126","v":"Inclusão de pessoas com deficiência nos códigos de uso/edificação de terras"},null,null,null,{"$f":"F126","v":0}]
[null,{"$f":"C127","v":"Q 4.2"},{"$f":"E127","v":"Códigos e normas de construção"},null,null,null,{"$f":"F127","v":0}]
[null,{"$f":"C128","v":"Q 4.3"},{"$f":"E128","v":"Códigos e normas de construção"},null,null,null,{"$f":"F128","v":0}]
[null,{"$f":"C129","v":"Q 4.4"},{"$f":"E129","v":"Remoção de barreiras ambientais"},null,null,null,{"$f":"F129","v":0}]
[]
[]
[null,"Princípio 05:",null,{"$f":"D113","v":"Proteger as zonas naturais para melhorar as funções protetoras oferecidas pelos  - Gestão de serviços ecossistêmicos com consideração pelas pessoas com deficiência"}]
[]
[null,null,"-- no question --"]
[]
[]
[null,"Princípio 06:",null,{"$f":"D114","v":"Fortalecer a capacidade institucional para a resiliência - Capacitação e Inclusão em prol da Resiliência"}]
[]
[null,{"$f":"C130","v":"Q 6.1"},{"$f":"E130","v":"Capacitação e Inclusão em prol da Resiliência"},null,null,null,{"$f":"F130","v":0}]
[null,{"$f":"C131","v":"Q 6.2"},{"$f":"E131","v":"Linguagem acessível"},null,null,null,{"$f":"F131","v":0}]
[]
[]
[null,"Princípio 07: ",null,{"$f":"D115","v":"Compreender e fortalecer a capacidade social para a resiliência - Inclusão de pessoas com deficiência na capacidade social"}]
[]
[null,{"$f":"C132","v":"Q 7.1"},{"$f":"E132","v":"Participação ativa das organizações de pessoas com deficiência"},null,null,null,{"$f":"F132","v":0}]
[null,{"$f":"C133","v":"Q 7.2"},{"$f":"E133","v":"Capacitação por e para organizações de pessoas com deficiência"},null,null,null,{"$f":"F133","v":0}]
[]
[]
[]
[]
[null,"Princípio 08:",null,{"$f":"D116","v":"Aumentar a resiliência das infraestruturas - Inclusão de pessoas com deficiência na resiliência da infraestrutura"}]
[]
[null,{"$f":"C134","v":"Q 8.1"},{"$f":"E134","v":"Proteção contra a violência"},null,null,null,{"$f":"F134","v":0}]
[]
[]
[null,"Princípio 09:",null,{"$f":"D117","v":"Acelerar a recuperação e reconstruir melhor  - Inclusão de pessoas com deficiência na resposta a desastres"}]
[]
[null,{"$f":"C135","v":"Q 9.1"},{"$f":"E135","v":"Detecção, monitoramento e alertas precoces inclusivos"},null,null,null,{"$f":"F135","v":0}]
[null,{"$f":"C136","v":"Q 9.2"},{"$f":"E136","v":"Simulações de situações de emergência"},null,null,null,{"$f":"F136","v":0}]
[null,{"$f":"C137","v":"Q 9.3 "},{"$f":"E137","v":"Campanhas de conscientização e simulações de situações de emergência em diferentes cenários"},null,null,null,{"$f":"F137","v":0}]
[]
[]
[null,"Princípio 10: ",null,{"$f":"D118","v":"Acelerar a recuperação e reconstruir melhor - Inclusão de pessoas com deficiência na recuperação/reconstrução melhor"}]
[]
[null,{"$f":"C138","v":"Q 10.1"},{"$f":"E138","v":"Reconstrução e reabilitação inclusivas"},null,null,null,{"$f":"F138","v":0}]
[null,{"$f":"C139","v":"Q 10.2"},{"$f":"E139","v":"Compilação das lições aprendidas"},null,null,null,{"$f":"F139","v":0}]
[]
[]
[]
[]
[]
[null,{"$f":"TODAY()","v":"2024-03-29"},null,null,null,null,null,{"$f":"Info!$B$4","v":"Nome da cidade"},{"$f":"IF(Info!D4=\"\",\"\",Info!D4)","v":""},null,{"$f":"Info!$B$6","v":"País"},{"$f":"IF(Info!D6=\"\",\"\",Info!D6)","v":""}]
[]
[]
[]
[]
[null,null,"Label","Name",null,"Essential","TotalScore","MaxScore","Label"]
[null,null,"E1",{"$f":"'E01'!I2&\" - \"&'E01'!I3","v":"Organizar para a Resiliência a Desastres - Inclusão de pessoas com deficiência na governança de risco de desastres"},null,"E1",{"$f":"SUMIFS($F$121:$F$997,$B$121:$B$997,F109)","v":0},{"$f":"COUNTIFS($B$121:$B$997,F109)*3","v":6},"01",null,{"$f":"SUM(G109:G118)","v":0},{"$f":"K109/K110","v":0},{"$f":"CONCATENATE(\"A pontuação geral para esta avaliação é \",SUM(G109:G118),\" / \",SUM(H109:H118))","v":"A pontuação geral para esta avaliação é 0 / 57"}]
[null,null,"E2",{"$f":"'E02'!I2&\"s - \"&'E02'!I3","v":"Identificar, compreender e usar cenários de riscos atuais e futuross - Inclusão de pessoas com deficiência em cenários de riscos de desastres\n"},null,"E2",0,{"$f":"COUNTIFS($B$121:$B$997,F110)*3","v":6},"02",null,{"$f":"SUM(H109:H118)","v":57},{"$f":"1-L109","v":1}]
[null,null,"E3",{"$f":"'E03'!I2&\" - \"&'E03'!I3","v":"Fortalecer a capacidade financeira para a resiliência  - Inclusão de pessoas com deficiência nos mecanismos financeiros"},null,"E3",0,3,"03"]
[null,null,"E4",{"$f":"'E04'!I2&\" - \"&'E04'!I3","v":"Buscar projeto e desenvolvimento urbano resiliente - Inclusão de pessoas com deficiência nos códigos de uso/edificação de terras"},null,"E4",0,12,"04"]
[null,null,"E5",{"$f":"'E05'!I2&\" - \"&'E05'!I4","v":"Proteger as zonas naturais para melhorar as funções protetoras oferecidas pelos  - Gestão de serviços ecossistêmicos com consideração pelas pessoas com deficiência"},null,"E5",0,0,"05"]
[null,null,"E6",{"$f":"'E06'!I2&\" - \"&'E06'!I5","v":"Fortalecer a capacidade institucional para a resiliência - Capacitação e Inclusão em prol da Resiliência"},null,"E6",0,6,"06"]
[null,null,"E7",{"$f":"'E07'!I2&\" - \"&'E07'!I3","v":"Compreender e fortalecer a capacidade social para a resiliência - Inclusão de pessoas com deficiência na capacidade social"},null,"E7",0,6,"07"]
[null,null,"E8",{"$f":"'E08'!I2&\" - \"&'E08'!I3","v":"Aumentar a resiliência das infraestruturas - Inclusão de pessoas com deficiência na resiliência da infraestrutura"},null,"E8",0,3,"08"]
[null,null,"E9",{"$f":"'E09'!I2&\" - \"&'E09'!I3","v":"Acelerar a recuperação e reconstruir melhor  - Inclusão de pessoas com deficiência na resposta a desastres"},null,"E9",0,9,"09"]
[null,null,"E10",{"$f":"'E10'!I2&\" - \"&'E10'!I3","v":"Acelerar a recuperação e reconstruir melhor - Inclusão de pessoas com deficiência na recuperação/reconstrução melhor"},null,"E10",0,6,"10"]
[]
[null,"Section","Ref",null,"Question","SelectedScore","ThisScore"]
[null,"E1",{"$f":"'E01'!G$5","v":"Q 1.1"},null,{"$f":"'E01'!I$5","v":"Não deixar ninguém para trás"},{"$f":"IF(G121=\"\",0,IF(G121=0,0,4-G121))","v":0},{"$f":"OFFSET('E01'!$E$1,MATCH(C121,'E01'!G:G,0)+3,0)","v":0},null,"Remarks: "]
[null,"E1",{"$f":"'E01'!G$16","v":"Q 1.2"},null,{"$f":"'E01'!I$16","v":"Organização, coordenação e participação"},0,{"$f":"OFFSET('E01'!$E$1,MATCH(C122,'E01'!G:G,0)+3,0)","v":0},null,"- On this page, firstly fix from Row 126 downward to reflect all questions in this Scorecard"]
[null,"E2",{"$f":"'E02'!G$5","v":"Q 2.1"},null,{"$f":"'E02'!I$5","v":"Projeto de análise de riscos e cenários de riscos inclusiva para pessoas com deficiência"},0,{"$f":"OFFSET('E02'!$E$1,MATCH(C123,'E02'!G:G,0)+3,0)","v":0},null,"- Column G from G127 downward, must double check the formula.  (Formula = offset(reference, rows, cols, [height],[width])"]
[null,"E2",{"$f":"'E02'!G$16","v":"Q 2.2"},null,{"$f":"'E02'!I$16","v":"Efeito em cascata"},0,{"$f":"OFFSET('E02'!$E$1,MATCH(C124,'E02'!G:G,0)+3,0)","v":0},null,"- Column F from F127 downward, must adjust the formula. If the scoring bar is between 0-3, use \"4\"; if the scoring is between 0-5, use \"6\""]
[null,"E3",{"$f":"'E03'!G$5","v":"Q 3.1"},null,{"$f":"'E03'!I$5","v":"Mecanismos financeiros inclusivos"},0,{"$f":"OFFSET('E03'!$E$1,MATCH(C125,'E03'!G:G,0)+3,0)","v":0},null,"E.G., =IF(G127=\"\",0,IF(G127=0,0,4-G127)) is for 0-3 scoring bar"]
[null,"E4",{"$f":"'E04'!G$5","v":"Q 4.1"},null,{"$f":"'E04'!I$5","v":"Inclusão de pessoas com deficiência nos códigos de uso/edificação de terras"},0,{"$f":"OFFSET('E04'!$E$1,MATCH(C126,'E04'!G:G,0)+3,0)","v":0},null,"E.G., =IF(G127=\"\",0,IF(G127=0,0,6-G127)) is for 0-5 scoring bar"]
[null,"E4",{"$f":"'E04'!G$16","v":"Q 4.2"},null,{"$f":"'E04'!I$16","v":"Códigos e normas de construção"},0,{"$f":"OFFSET('E04'!$E$1,MATCH(C127,'E04'!G:G,0)+3,0)","v":0}]
[null,"E4",{"$f":"'E04'!G$27","v":"Q 4.3"},null,{"$f":"'E04'!I$27","v":"Códigos e normas de construção"},0,{"$f":"OFFSET('E04'!$E$1,MATCH(C128,'E04'!G:G,0)+3,0)","v":0},null,"-Then, work on Row 114 - 123"]
[null,"E4",{"$f":"'E04'!G$38","v":"Q 4.4"},null,{"$f":"'E04'!I$38","v":"Remoção de barreiras ambientais"},0,{"$f":"OFFSET('E04'!$E$1,MATCH(C129,'E04'!G:G,0)+3,0)","v":0},null,"- Check Column D (D114:D123) for the Essential titles"]
[null,"E6",{"$f":"'E06'!$G$5","v":"Q 6.1"},null,{"$f":"'E06'!I$5","v":"Capacitação e Inclusão em prol da Resiliência"},0,{"$f":"OFFSET('E06'!$E$1,MATCH(C130,'E06'!G:G,0)+3,0)","v":0},null,"- Check Column G (G114:G123).  The formular should not need fixing. (=SUMIFS($F$126:$F$1002,$B$126:$B$1002,F114)"]
[null,"E6",{"$f":"'E06'!G$16","v":"Q 6.2"},null,{"$f":"'E06'!I$16","v":"Linguagem acessível"},0,{"$f":"OFFSET('E06'!$E$1,MATCH(C131,'E06'!G:G,0)+3,0)","v":0},null,"- Check Column H (H114:H123) Maximum Score"]
[null,"E7",{"$f":"'E07'!G$5","v":"Q 7.1"},null,{"$f":"'E07'!I$5","v":"Participação ativa das organizações de pessoas com deficiência"},0,{"$f":"OFFSET('E07'!$E$1,MATCH(C132,'E07'!G:G,0)+3,0)","v":0},null,"- Use formular =COUNTIFS($B$126:$B$1002,F114)*3, if scoring bar is 0-3"]
[null,"E7",{"$f":"'E07'!G$16","v":"Q 7.2"},null,{"$f":"'E07'!I$16","v":"Capacitação por e para organizações de pessoas com deficiência"},0,{"$f":"OFFSET('E07'!$E$1,MATCH(C133,'E07'!G:G,0)+3,0)","v":0},null,"- Use formular =COUNTIFS($B$126:$B$1002,F114)*5, if scoring bar is 0-5"]
[null,"E8",{"$f":"'E08'!G$5","v":"Q 8.1"},null,{"$f":"'E08'!I$5","v":"Proteção contra a violência"},0,{"$f":"OFFSET('E08'!$E$1,MATCH(C134,'E08'!G:G,0)+3,0)","v":0}]
[null,"E9",{"$f":"'E09'!G$5","v":"Q 9.1"},null,{"$f":"'E09'!I$5","v":"Detecção, monitoramento e alertas precoces inclusivos"},0,{"$f":"OFFSET('E09'!$E$1,MATCH(C135,'E09'!G:G,0)+3,0)","v":0},null,"- Then adjust the result display area above"]
[null,"E9",{"$f":"'E09'!G$16","v":"Q 9.2"},null,{"$f":"'E09'!I$16","v":"Simulações de situações de emergência"},0,{"$f":"OFFSET('E09'!$E$1,MATCH(C136,'E09'!G:G,0)+3,0)","v":0},null,"- Fix the list of indicators"]
[null,"E9",{"$f":"'E09'!G$27","v":"Q 9.3 "},null,{"$f":"'E09'!I$27","v":"Campanhas de conscientização e simulações de situações de emergência em diferentes cenários"},0,{"$f":"OFFSET('E09'!$E$1,MATCH(C137,'E09'!G:G,0)+3,0)","v":0},null,"- Apply appropriate chart types"]
[null,"E10",{"$f":"'E10'!G$5","v":"Q 10.1"},null,{"$f":"'E10'!I$5","v":"Reconstrução e reabilitação inclusivas"},0,{"$f":"OFFSET('E10'!$E$1,MATCH(C138,'E10'!G:G,0)+3,0)","v":0},null,"- Change chart's axis value (3 maximum for 0-3 scoring bar, and 5 maximum for 0-5 scoring bar)"]
[null,"E10",{"$f":"'E10'!G$16","v":"Q 10.2"},null,{"$f":"'E10'!I$16","v":"Compilação das lições aprendidas"},0,{"$f":"OFFSET('E10'!$E$1,MATCH(C139,'E10'!G:G,0)+3,0)","v":0},null,"- Adjust the chart diaplay alignment across all essentials, etc."]
[null,null,null,null,null,null,null,null,"- View from 'Page Break Preview' and further adjust page layout to fit nicely in the print area"]
[]
[]
[null,null,null,null,null,null,null,null,"- Replace the title part, copyright year with launch year, check other texts, and the overall diagram (adjust axis value if needed)"]
[]
[null,null,null,null,null,null,null,null,"- Once done, change font color from Row 107 downward to white"]

{"sheet":"E01","index":3,"n_rows":38,"n_cols":9,"rows_kept":38,"cut":false,"hidden":false,"merged":[[19,2,22,3],[7,2,7,3],[8,2,11,3],[5,2,5,3],[6,2,6,3],[16,2,16,3],[17,2,17,3],[18,2,18,3]]}
[]
[null,null,null,null,null,null,null,null,"Organizar para a Resiliência a Desastres"]
[null,"E1 Inclusão de pessoas com deficiência na governança de risco de desastres",null,null,null,null,{"$f":"TRIM(LEFT(B3,3))","v":"E1"},null,{"$f":"TRIM(MID(B3,4,80))","v":"Inclusão de pessoas com deficiência na governança de risco de desastres"}]
[]
[null,"Q 1.1 Não deixar ninguém para trás",null,null,null,null,{"$f":"TRIM(LEFT(B5,6))","v":"Q 1.1"},null,{"$f":"TRIM(MID(B5,6,120))","v":"Não deixar ninguém para trás"}]
[null,"Pergunta","Comentários"]
[]
[null,"Respostas","Meios de verificação (explicação e evidência)"]
[null,null,null,null,null,{"$f":"IF($E$9=1,TRUE,FALSE)","v":false}]
[null,null,null,null,null,{"$f":"IF($E$9=2,TRUE,FALSE)","v":false}]
[null,null,null,null,null,{"$f":"IF($E$9=3,TRUE,FALSE)","v":false}]
[null,null,null,null,null,{"$f":"IF($E$9=4,TRUE,FALSE)","v":false}]
[null,"Meios de verificação (explicação e evidência)","Entidade responsável","Tempo alocado"]
[]
[]
[null,"Q 1.2 Organização, coordenação e participação",null,null,null,null,{"$f":"TRIM(LEFT(B16,6))","v":"Q 1.2"},null,{"$f":"TRIM(MID(B16,6,120))","v":"Organização, coordenação e participação"}]
[null,"Pergunta","Comentários"]
[]
[null,"Respostas","Meios de verificação (explicação e evidência)"]
[null,null,null,null,null,{"$f":"IF($E$20=1,TRUE,FALSE)","v":false}]
[null,null,null,null,null,{"$f":"IF($E$20=2,TRUE,FALSE)","v":false}]
[null,null,null,null,null,{"$f":"IF($E$20=3,TRUE,FALSE)","v":false}]
[null,null,null,null,null,{"$f":"IF($E$20=4,TRUE,FALSE)","v":false}]
[null,"Ações para promover a inclusão de pessoas com deficiência","Entidade responsável","Tempo alocado"]
[]
[]
[null,null,null,null,null,null,{"$f":"LEFT(B27,5)","v":""}]
[]
[]
[]
[]
[]
[]
[]
[]
[]
[]
[null,null,null,null,null,null,{"$f":"LEFT(B38,5)","v":""}]

{"sheet":"E02","index":4,"n_rows":38,"n_cols":9,"rows_kept":38,"cut":false,"hidden":false,"merged":[[18,2,18,3],[8,2,11,3],[19,2,22,3],[5,2,5,3],[6,2,6,3],[7,2,7,3],[16,2,16,3],[17,2,17,3]]}
[]
[null,null,null,null,null,null,null,null,"Identificar, compreender e usar cenários de riscos atuais e futuros"]
[null,"E2 Inclusão de pessoas com deficiência em cenários de riscos de desastres\n",null,null,null,null,{"$f":"TRIM(LEFT(B3,3))","v":"E2"},null,{"$f":"TRIM(MID(B3,4,80))","v":"Inclusão de pessoas com deficiência em cenários de riscos de desastres\n"}]
[]
[null,"Q 2.1 Projeto de análise de riscos e cenários de riscos inclusiva para pessoas com deficiência",null,null,null,null,{"$f":"TRIM(LEFT(B5,6))","v":"Q 2.1"},null,{"$f":"TRIM(MID(B5,6,120))","v":"Projeto de análise de riscos e cenários de riscos inclusiva para pessoas com deficiência"}]
[null,"Pergunta","Comentários"]
[]
[null,"Respostas","Meios de verificação (explicação e evidência)"]
[null,null,null,null,null,{"$f":"IF($E$9=1,TRUE,FALSE)","v":false}]
[null,null,null,null,null,{"$f":"IF($E$9=2,TRUE,FALSE)","v":false}]
[null,null,null,null,null,{"$f":"IF($E$9=3,TRUE,FALSE)","v":false}]
[null,null,null,null,null,{"$f":"IF($E$9=4,TRUE,FALSE)","v":false}]
[null,"Ações para promover a inclusão de pessoas com deficiência","Entidade responsável","Tempo alocado"]
[]
[]
[null,"Q 2.2 Efeito em cascata",null,null,null,null,{"$f":"TRIM(LEFT(B16,6))","v":"Q 2.2"},null,{"$f":"TRIM(MID(B16,6,120))","v":"Efeito em cascata"}]
[null,"Pergunta","Comentários"]
[]
[null,"Respostas","Meios de verificação (explicação e evidência)"]
[null,null,null,null,null,{"$f":"IF($E$20=1,TRUE,FALSE)","v":false}]
[null,null,null,null,null,{"$f":"IF(E20=2,TRUE,FALSE)","v":false}]
[null,null,null,null,null,{"$f":"IF(E20=3,TRUE,FALSE)","v":false}]
[null,null,null,null,null,{"$f":"IF(E20=4,TRUE,FALSE)","v":false}]
[null,"Ações para promover a inclusão de pessoas com deficiência","Entidade responsável","Tempo alocado"]
[]
[]
[null,null,null,null,null,null,{"$f":"LEFT(B27,5)","v":""}]
[]
[]
[]
[]
[]
[]
[]
[]
[]
[]
[null,null,null,null,null,null,{"$f":"LEFT(B38,5)","v":""}]

{"sheet":"E03","index":5,"n_rows":38,"n_cols":9,"rows_kept":38,"cut":false,"hidden":false,"merged":[[4,1,4,3],[5,2,5,3],[6,2,6,3],[7,2,7,3],[8,2,11,3]]}
[]
[null,null,null,null,null,null,null,null,"Fortalecer a capacidade financeira para a resiliência "]
[null,"E3 Inclusão de pessoas com deficiência nos mecanismos financeiros ",null,null,null,null,{"$f":"TRIM(LEFT(B3,3))","v":"E3"},null,{"$f":"TRIM(MID(B3,4,80))","v":"Inclusão de pessoas com deficiência nos mecanismos financeiros"}]
[]
[null,"Q 3.1 Mecanismos financeiros inclusivos",null,null,null,null,{"$f":"TRIM(LEFT(B5,6))","v":"Q 3.1"},null,{"$f":"TRIM(MID(B5,6,120))","v":"Mecanismos financeiros inclusivos"}]
[null,"Pergunta","Comentários"]
[]
[null,"Respostas","Meios de verificação (explicação e evidência)"]
[null,null,null,null,null,{"$f":"IF($E$9=1,TRUE,FALSE)","v":false}]
[null,null,null,null,null,{"$f":"IF($E$9=2,TRUE,FALSE)","v":false}]
[null,null,null,null,null,{"$f":"IF($E$9=3,TRUE,FALSE)","v":false}]
[null,null,null,null,null,{"$f":"IF($E$9=4,TRUE,FALSE)","v":false}]
[null,"Ações para promover a inclusão de pessoas com deficiência","Entidade responsável","Tempo alocado"]
[]
[]
[null,null,null,null,null,null,{"$f":"TRIM(LEFT(B16,6))","v":""}]
[]
[]
[]
[]
[]
[]
[]
[]
[]
[]
[null,null,null,null,null,null,{"$f":"LEFT(B27,5)","v":""}]
[]
[]
[]
[]
[]
[]
[]
[]
[]
[]
[null,null,null,null,null,null,{"$f":"LEFT(B38,5)","v":""}]

{"sheet":"E04","index":6,"n_rows":46,"n_cols":9,"rows_kept":46,"cut":false,"hidden":false,"merged":[[37,1,37,3],[38,2,38,3],[39,2,39,3],[40,2,40,3],[41,2,44,3],[28,2,28,3],[29,2,29,3],[30,2,33,3],[4,1,4,3],[5,2,5,3],[8,2,11,3],[6,2,6,3],[7,2,7,3],[15,1,15,3],[16,2,16,3],[17,2,17,3],[18,2,18,3],[19,2,21,3],[26,1,26,3],[27,2,27,3]]}
[]
[null,null,null,null,null,null,null,null,"Buscar projeto e desenvolvimento urbano resiliente"]
[null,"E4 Inclusão de pessoas com deficiência nos códigos de uso/edificação de terras",null,null,null,null,{"$f":"TRIM(LEFT(B3,3))","v":"E4"},null,{"$f":"TRIM(MID(B3,4,80))","v":"Inclusão de pessoas com deficiência nos códigos de uso/edificação de terras"}]
[]
[null,"Q 4.1 Inclusão de pessoas com deficiência nos códigos de uso/edificação de terras",null,null,null,null,{"$f":"TRIM(LEFT(B5,6))","v":"Q 4.1"},null,{"$f":"TRIM(MID(B5,6,120))","v":"Inclusão de pessoas com deficiência nos códigos de uso/edificação de terras"}]
[null,"Pergunta","Comentários"]
[]
[null,"Respostas","Meios de verificação (explicação e evidência)"]
[null,null,null,null,null,{"$f":"IF(E9=1,TRUE,FALSE)","v":false}]
[null,null,null,null,null,{"$f":"IF(E9=2,TRUE,FALSE)","v":false}]
[null,null,null,null,null,{"$f":"IF(E9=3,TRUE,FALSE)","v":false}]
[null,null,null,null,null,{"$f":"IF(E9=4,TRUE,FALSE)","v":false}]
[null,"Ações para promover a inclusão de pessoas com deficiência","Entidade responsável","Tempo alocado"]
[]
[]
[null,"Q 4.2 Códigos e normas de construção",null,null,null,null,{"$f":"TRIM(LEFT(B16,6))","v":"Q 4.2"},null,{"$f":"TRIM(MID(B16,6,120))","v":"Códigos e normas de construção"}]
[null,"Pergunta","Comments"]
[]
[null,"Respostas","Meios de verificação (explicação e evidência)"]
[null,null,null,null,null,{"$f":"IF($E$20=1,TRUE,FALSE)","v":false}]
[null,null,null,null,null,{"$f":"IF($E$20=2,TRUE,FALSE)","v":false}]
[null,null,null,null,null,{"$f":"IF($E$20=3,TRUE,FALSE)","v":false}]
[null,null,null,null,null,{"$f":"IF($E$20=4,TRUE,FALSE)","v":false}]
[null,"Ações para promover a inclusão de pessoas com deficiência","Entidade responsável","Tempo alocado"]
[]
[]
[null,"Q 4.3 Códigos e normas de construção",null,null,null,null,{"$f":"LEFT(B27,5)","v":"Q 4.3"},null,{"$f":"TRIM(MID(B27,6,120))","v":"Códigos e normas de construção"}]
[null,"Pergunta","Comentários"]
[]
[null,"Respostas","Meios de verificação (explicação e evidência)"]
[null,null,null,null,null,{"$f":"IF($E$31=1,TRUE,FALSE)","v":false}]
[null,null,null,null,null,{"$f":"IF($E$31=2,TRUE,FALSE)","v":false}]
[null,null,null,null,null,{"$f":"IF($E$31=3,TRUE,FALSE)","v":false}]
[null,null,null,null,null,{"$f":"IF($E$31=4,TRUE,FALSE)","v":false}]
[null,"Ações para promover a inclusão de pessoas com deficiência","Entidade responsável","Tempo alocado"]
[]
[]
[" ","Q 4.4 Remoção de barreiras ambientais",null,null,null,null,{"$f":"LEFT(B38,5)","v":"Q 4.4"},null,{"$f":"TRIM(MID(B38,6,120))","v":"Remoção de barreiras ambientais"}]
[null,"Pergunta","Comentários"]
[]
[null,"Respostas","Meios de verificação (explicação e evidência)"]
[null,null,null,null,null,{"$f":"IF(E42=1,TRUE,FALSE)","v":false}]
[null,null,null,null,null,{"$f":"IF(E42=2,TRUE,FALSE)","v":false}]
[null,null,null,null,null,{"$f":"IF(E42=3,TRUE,FALSE)","v":false}]
[null,null,null,null,null,{"$f":"IF(E42=4,TRUE,FALSE)","v":false}]
[null,"Ações para promover a inclusão de pessoas com deficiência","Entidade responsável","Tempo alocado"]

{"sheet":"E05","index":7,"n_rows":4,"n_cols":9,"rows_kept":4,"cut":false,"hidden":false,"merged":[]}
[]
[null,null,null,null,null,null,null,null,"Proteger as zonas naturais para melhorar as funções protetoras oferecidas pelos "]
[]
[null,"E5 Gestão de serviços ecossistêmicos com consideração pelas pessoas com deficiência",null,null,null,null,null,null,"Gestão de serviços ecossistêmicos com consideração pelas pessoas com deficiência"]

{"sheet":"E06","index":8,"n_rows":38,"n_cols":9,"rows_kept":38,"cut":false,"hidden":false,"merged":[[19,2,22,3],[15,1,15,3],[16,2,16,3],[17,2,17,3],[18,2,18,3],[4,1,4,3],[5,2,5,3],[6,2,6,3],[7,2,7,3],[8,2,11,3]]}
[]
[null,null,null,null,null,null,null,null,"Fortalecer a capacidade institucional para a resiliência"]
[null,"E6 Inclusão de pessoas com deficiência na capacidade institucional",null,null,null,null,{"$f":"TRIM(LEFT(B3,3))","v":"E6"},null,{"$f":"TRIM(MID(B3,4,80))","v":"Inclusão de pessoas com deficiência na capacidade institucional"}]
[]
[null,"Q 6.1 Capacitação e Inclusão em prol da Resiliência",null,null,null,null,{"$f":"TRIM(LEFT(B5,6))","v":"Q 6.1"},null,{"$f":"TRIM(MID(B5,6,120))","v":"Capacitação e Inclusão em prol da Resiliência"}]
[null,"Pergunta","Comentários"]
[]
[null,"Respostas","Meios de verificação (explicação e evidência)"]
[null,null,null,null,null,{"$f":"IF(E9=1,TRUE,FALSE)","v":false}]
[null,null,null,null,null,{"$f":"IF(E9=2,TRUE,FALSE)","v":false}]
[null,null,null,null,null,{"$f":"IF(E9=3,TRUE,FALSE)","v":false}]
[null,null,null,null,null,{"$f":"IF(E9=4,TRUE,FALSE)","v":false}]
[null,"Ações para promover a inclusão de pessoas com deficiência","Entidade responsável","Tempo alocado"]
[]
[]
[null,"Q 6.2 Linguagem acessível",null,null,null,null,{"$f":"TRIM(LEFT(B16,6))","v":"Q 6.2"},null,{"$f":"TRIM(MID(B16,6,120))","v":"Linguagem acessível"}]
[null,"Pergunta","Comentários"]
[]
[null,"Respostas","Meios de verificação (explicação e evidência)"]
[null,null,null,null,null,{"$f":"IF(E20=1,TRUE,FALSE)","v":false}]
[null,null,null,null,null,{"$f":"IF(E20=2,TRUE,FALSE)","v":false}]
[null,null,null,null,null,{"$f":"IF(E20=3,TRUE,FALSE)","v":false}]
[null,null,null,null,null,{"$f":"IF(E20=4,TRUE,FALSE)","v":false}]
[null,"Ações para promover a inclusão de pessoas com deficiência","Entidade responsável","Tempo alocado"]
[]
[]
[null,null,null,null,null,null,{"$f":"LEFT(B27,5)","v":""},null,{"$f":"TRIM(MID(B27,6,120))","v":""}]
[]
[]
[]
[]
[]
[]
[]
[]
[]
[]
[null,null,null,null,null,null,{"$f":"LEFT(B38,5)","v":""},null,{"$f":"TRIM(MID(B38,6,120))","v":""}]

{"sheet":"E07","index":9,"n_rows":38,"n_cols":9,"rows_kept":38,"cut":false,"hidden":false,"merged":[[16,2,16,3],[8,2,11,3],[19,2,22,3],[17,2,17,3],[18,2,18,3],[4,1,4,3],[5,2,5,3],[6,2,6,3],[7,2,7,3],[15,1,15,3]]}
[]
[null,null,null,null,null,null,null,null,"Compreender e fortalecer a capacidade social para a resiliência"]
[null,"E7 Inclusão de pessoas com deficiência na capacidade social",null,null,null,null,{"$f":"TRIM(LEFT(B3,3))","v":"E7"},null,{"$f":"TRIM(MID(B3,4,80))","v":"Inclusão de pessoas com deficiência na capacidade social"}]
[]
[null,"Q 7.1 Participação ativa das organizações de pessoas com deficiência",null,null,null,null,{"$f":"TRIM(LEFT(B5,6))","v":"Q 7.1"},null,{"$f":"TRIM(MID(B5,6,120))","v":"Participação ativa das organizações de pessoas com deficiência"}]
[null,"Pergunta","Comentários"]
[]
[null,"Respostas","Meios de verificação (explicação e evidência)"]
[null,null,null,null,null,{"$f":"IF(E9=1,TRUE,FALSE)","v":false}]
[null,null,null,null,null,{"$f":"IF(E9=2,TRUE,FALSE)","v":false}]
[null,null,null,null,null,{"$f":"IF(E9=3,TRUE,FALSE)","v":false}]
[null,null,null,null,null,{"$f":"IF(E9=4,TRUE,FALSE)","v":false}]
[null,"Ações para promover a inclusão de pessoas com deficiência","Entidade responsável","Tempo alocado"]
[]
[]
[null,"Q 7.2 Capacitação por e para organizações de pessoas com deficiência",null,null,null,null,{"$f":"TRIM(LEFT(B16,6))","v":"Q 7.2"},null,{"$f":"TRIM(MID(B16,6,120))","v":"Capacitação por e para organizações de pessoas com deficiência"}]
[null,"Pergunta","Comentários"]
[]
[null,"Respostas","Meios de verificação (explicação e evidência)"]
[null,null,null,null,null,{"$f":"IF(E20=1,TRUE,FALSE)","v":false}]
[null,null,null,null,null,{"$f":"IF(E20=2,TRUE,FALSE)","v":false}]
[null,null,null,null,null,{"$f":"IF(E20=3,TRUE,FALSE)","v":false}]
[null,null,null,null,null,{"$f":"IF(E20=4,TRUE,FALSE)","v":false}]
[null,"Ações para promover a inclusão de pessoas com deficiência","Entidade responsável","Tempo alocado"]
[]
[]
[null,null,null,null,null,null,{"$f":"LEFT(B27,5)","v":""},null,{"$f":"TRIM(MID(B27,6,120))","v":""}]
[]
[]
[]
[]
[]
[]
[]
[]
[]
[]
[null,null,null,null,null,null,{"$f":"LEFT(B38,5)","v":""},null,{"$f":"TRIM(MID(B38,6,120))","v":""}]

{"sheet":"E08","index":10,"n_rows":38,"n_cols":10,"rows_kept":38,"cut":false,"hidden":false,"merged":[[8,2,11,3],[4,1,4,3],[5,2,5,3],[6,2,6,3],[7,2,7,3]]}
[]
[null,null,null,null,null,null,null,null,"Aumentar a resiliência das infraestruturas"]
[null,"E8 Inclusão de pessoas com deficiência na resiliência da infraestrutura",null,null,null,null,{"$f":"TRIM(LEFT(B3,3))","v":"E8"},null,{"$f":"TRIM(MID(B3,4,80))","v":"Inclusão de pessoas com deficiência na resiliência da infraestrutura"},{"$f":"TRIM(MID(C3,4,80))","v":""}]
[]
[null,"Q 8.1 Proteção contra a violência",null,null,null,null,{"$f":"TRIM(LEFT(B5,6))","v":"Q 8.1"},null,{"$f":"TRIM(MID(B5,6,120))","v":"Proteção contra a violência"},{"$f":"TRIM(MID(C5,6,120))","v":""}]
[null,"Pergunta","Comentários"]
[]
[null,"Respostas","Meios de verificação (explicação e evidência)"]
[null,null,null,null,null,{"$f":"IF(E9=1,TRUE,FALSE)","v":false}]
[null,null,null,null,null,{"$f":"IF(E9=2,TRUE,FALSE)","v":false}]
[null,null,null,null,null,{"$f":"IF(E9=3,TRUE,FALSE)","v":false}]
[null,null,null,null,null,{"$f":"IF(E9=4,TRUE,FALSE)","v":false}]
[null,"Ações para promover a inclusão de pessoas com deficiência","Entidade responsável ","Tempo alocado"]
[]
[]
[null,null,null,null,null,null,{"$f":"TRIM(LEFT(B16,6))","v":""},null,{"$f":"TRIM(MID(B16,6,120))","v":""},{"$f":"TRIM(MID(C16,6,120))","v":""}]
[]
[]
[]
[]
[]
[]
[]
[]
[]
[]
[null,null,null,null,null,null,{"$f":"LEFT(B27,5)","v":""},null,{"$f":"TRIM(MID(B27,6,120))","v":""},{"$f":"TRIM(MID(C27,6,120))","v":""}]
[]
[]
[]
[]
[]
[]
[]
[]
[]
[]
[null,null,null,null,null,null,{"$f":"LEFT(B38,5)","v":""},null,{"$f":"TRIM(MID(B38,6,120))","v":""},{"$f":"TRIM(MID(C38,6,120))","v":""}]

{"sheet":"E09","index":11,"n_rows":38,"n_cols":9,"rows_kept":38,"cut":false,"hidden":false,"merged":[[17,2,17,3],[18,2,18,3],[4,1,4,3],[5,2,5,3],[6,2,6,3],[7,2,7,3],[15,1,15,3],[16,2,16,3],[8,2,11,3],[30,2,33,3],[19,2,22,3],[26,1,26,3],[27,2,27,3],[28,2,28,3],[29,2,29,3]]}
[]
[null,null,null,null,null,null,null,null,"Acelerar a recuperação e reconstruir melhor "]
[null,"E9 Inclusão de pessoas com deficiência na resposta a desastres",null,null,null,null,{"$f":"TRIM(LEFT(B3,3))","v":"E9"},null,{"$f":"TRIM(MID(B3,4,80))","v":"Inclusão de pessoas com deficiência na resposta a desastres"}]
[]
[null,"Q 9.1 Detecção, monitoramento e alertas precoces inclusivos",null,null,null,null,{"$f":"TRIM(LEFT(B5,6))","v":"Q 9.1"},null,{"$f":"TRIM(MID(B5,6,120))","v":"Detecção, monitoramento e alertas precoces inclusivos"}]
[null,"Pergunta","Comentários"]
[]
[null,"Respostas","Meios de verificação (explicação e evidência)"]
[null,null,null,null,null,{"$f":"IF(E9=1,TRUE,FALSE)","v":false}]
[null,null,null,null,null,{"$f":"IF(E9=2,TRUE,FALSE)","v":false}]
[null,null,null,null,null,{"$f":"IF(E9=3,TRUE,FALSE)","v":false}]
[null,null,null,null,null,{"$f":"IF(E9=4,TRUE,FALSE)","v":false}]
[null,"Ações para promover a inclusão de pessoas com deficiência","Entidade responsável ","Tempo alocado"]
[]
[]
[null,"Q 9.2 Simulações de situações de emergência",null,null,null,null,{"$f":"TRIM(LEFT(B16,6))","v":"Q 9.2"},null,{"$f":"TRIM(MID(B16,6,120))","v":"Simulações de situações de emergência"}]
[null,"Pergunta","Comentários"]
[]
[null,"Respostas","Meios de verificação (explicação e evidência)"]
[null,null,null,null,null,{"$f":"IF(E20=1,TRUE,FALSE)","v":false}]
[null,null,null,null,null,{"$f":"IF(E20=2,TRUE,FALSE)","v":false}]
[null,null,null,null,null,{"$f":"IF(E20=3,TRUE,FALSE)","v":false}]
[null,null,null,null,null,{"$f":"IF(E20=4,TRUE,FALSE)","v":false}]
[null,"Ações para promover a inclusão de pessoas com deficiência","Entidade responsável","Tempo alocado"]
[]
[]
[null,"Q 9.3 Campanhas de conscientização e simulações de situações de emergência em diferentes cenários",null,null,null,null,{"$f":"LEFT(B27,6)","v":"Q 9.3 "},null,{"$f":"TRIM(MID(B27,6,120))","v":"Campanhas de conscientização e simulações de situações de emergência em diferentes cenários"}]
[null,"Pergunta","Comentários"]
[]
[null,"Respostas","Meios de verificação (explicação e evidência)"]
[null,null,null,null,null,{"$f":"IF(E31=1,TRUE,FALSE)","v":false}]
[null,null,null,null,null,{"$f":"IF(E31=2,TRUE,FALSE)","v":false}]
[null,null,null,null,null,{"$f":"IF(E31=3,TRUE,FALSE)","v":false}]
[null,null,null,null,null,{"$f":"IF(E31=4,TRUE,FALSE)","v":false}]
[null,"Ações para promover a inclusão de pessoas com deficiência","Entidade responsável ","Tempo alocado"]
[]
[]
[null,null,null,null,null,null,{"$f":"LEFT(B38,5)","v":""},null,{"$f":"TRIM(MID(B38,6,120))","v":""}]

{"sheet":"E10","index":12,"n_rows":38,"n_cols":9,"rows_kept":38,"cut":false,"hidden":false,"merged":[[16,2,16,3],[17,2,17,3],[18,2,18,3],[19,2,22,3],[4,1,4,3],[5,2,5,3],[6,2,6,3],[7,2,7,3],[8,2,11,3],[15,1,15,3]]}
[]
[null,null,null,null,null,null,null,null,"Acelerar a recuperação e reconstruir melhor"]
[null,"E10 Inclusão de pessoas com deficiência na recuperação/reconstrução melhor",null,null,null,null,{"$f":"TRIM(LEFT(B3,3))","v":"E10"},null,{"$f":"TRIM(MID(B3,4,80))","v":"Inclusão de pessoas com deficiência na recuperação/reconstrução melhor"}]
[null,null,null,null,null,null,null,null,"Acelerar a recuperação e reconstruir melhor"]
[null,"Q 10.1 Reconstrução e reabilitação inclusivas",null,null,null,null,{"$f":"TRIM(LEFT(B5,6))","v":"Q 10.1"},null,{"$f":"TRIM(MID(B5,8,120))","v":"Reconstrução e reabilitação inclusivas"}]
[null,"Pergunta","Comentários"]
[null,"A reconstrução e reabilitação pós-desastre visa construir uma sociedade mais acessível e inclusiva, por meio do engajamento significativo de organizações de pessoas com deficiência?"]
[null,"Respostas","Meios de verificação (explicação e evidência)"]
[null,null,null,null,null,{"$f":"IF(E9=1,TRUE,FALSE)","v":false}]
[null,null,null,null,null,{"$f":"IF(E9=2,TRUE,FALSE)","v":false}]
[null,null,null,null,null,{"$f":"IF(E9=3,TRUE,FALSE)","v":false}]
[null,null,null,null,null,{"$f":"IF(E9=4,TRUE,FALSE)","v":false}]
[null,"Ações para promover a inclusão de pessoas com deficiência","Entidade responsável","Tempo alocado"]
[]
[]
[null,"Q 10.2 Compilação das lições aprendidas",null,null,null,null,{"$f":"TRIM(LEFT(B16,6))","v":"Q 10.2"},null,{"$f":"TRIM(MID(B16,8,120))","v":"Compilação das lições aprendidas"}]
[null,"Pergunta","Comentários"]
[]
[null,"Respostas","Meios de verificação (explicação e evidência)"]
[null,null,null,null,null,{"$f":"IF(E20=1,TRUE,FALSE)","v":false}]
[null,null,null,null,null,{"$f":"IF(E20=2,TRUE,FALSE)","v":false}]
[null,null,null,null,null,{"$f":"IF(E20=3,TRUE,FALSE)","v":false}]
[null,null,null,null,null,{"$f":"IF(E20=4,TRUE,FALSE)","v":false}]
[null,"Ações para promover a inclusão de pessoas com deficiência","Entidade responsável","Tempo alocado"]
[]
[]
[null,null,null,null,null,null,{"$f":"LEFT(B27,5)","v":""},null,{"$f":"TRIM(MID(B27,6,120))","v":""}]
[]
[]
[]
[]
[]
[]
[]
[]
[]
[]
[null,null,null,null,null,null,{"$f":"LEFT(B38,5)","v":""},null,{"$f":"TRIM(MID(B38,6,120))","v":""}]

{"sheet":"About","index":13,"n_rows":0,"n_cols":0,"rows_kept":0,"cut":false,"hidden":false,"merged":[]}